[Event "US Masters 2022"]
[Site "Charlotte"]
[Date "2022.11.27"]
[Round "9.2"]
[White "Schitco, Ivan"]
[Black "Oparin, Grigoriy"]
[Result "1/2-1/2"]
[ECO "E05"]
[WhiteElo "2532"]
[BlackElo "2683"]
[Annotator "TA"]
[PlyCount "40"]
[EventDate "2022.11.23"]
[EventType "swiss"]
[EventCountry "USA"]
[SourceTitle "playchess.com"]
[Source "ChessBase"]
[SourceQuality "1"]
[TimeControl "5400+30"]

{[%evp 21,27,8,14,8,10,8,4,2]} 1. d4 {[%emt 0:00:02]} Nf6 {[%emt 0:00:04]} 2. c4 {[%emt 0:00:09]} e6 {[%emt 0:00:05]} 3. g3 {[%emt 0:00:16]} d5 {[%emt 0:00:19]} 4. Bg2 {[%emt 0:00:15]} Be7 {[%emt 0:00:06]} 5. Nf3 {[%emt 0:00:18]} O-O {[%emt 0:00:06]} 6. O-O {[%emt 0:00:15]} dxc4 {[%emt 0:00:05]} 7. Qc2 {[%emt 0:00:24]} a6 {[%emt 0:00:09]} 8. a4 {[%emt 0:00:12]} Bd7 {[%emt 0:00:14]} 9. Qxc4 {[%emt 0:00:25]} Bc6 {[%emt 0:00:05]} 10. Bg5 {[%emt 0:00:12]} Nbd7 {[%emt 0:00:51]} 11. Nc3 {[%emt 0:01:09]} h6 {[%emt 0:00:44] The position is equal.} 12. Bxf6 {[%emt 0:01:16] E05: Open Catalan: 5 Nf3 Be7.} Nxf6 {[%emt 0:00:06]} 13. Rfd1 {[%emt 0:06:49] is the new trend.} Qd6 {[%emt 0:02:45]} 14. Ne5 {[%emt 0:16:46] [#] A rather calm draw.   Weighted Error Value: White=0.01 (flawless) /Black=0.00 (flawless)} {Predecessor:} Bd5 $146 15. Qd3 Bxg2 16. Kxg2 c5 17. Qe3 cxd4 18. Rxd4 Qc7 19. Rc4 Qa5 20. Rb1 Rfc8 {0-1 (47) Heiermann,L (1904)-Kratochvil,V (2306) ICCF email 2019} 1/2-1/2

[Event "US Masters 2022"]
[Site "Charlotte"]
[Date "2022.11.28"]
[Round "9.3"]
[White "Liang, Awonder"]
[Black "Macieja, Bartlomiej"]
[Result "1/2-1/2"]
[ECO "A35"]
[WhiteElo "2630"]
[BlackElo "2514"]
[Annotator "TA"]
[PlyCount "56"]
[EventDate "2022.11.23"]
[EventType "swiss"]
[EventCountry "USA"]
[SourceTitle "playchess.com"]
[Source "ChessBase"]
[SourceQuality "1"]
[TimeControl "5400+30"]

{[%evp 18,56,27,10,48,57,42,0,57,54,41,61,54,60,51,56,37,11,13,19,14,28,57,47,42,5,7,0,0,0,0,0,0,0,0,0,0,0,0,0,0]} 1. e4 {[%emt 0:00:01]} c6 {[%emt 0:04:22]} 2. d4 {[%emt 0:00:02]} d5 {[%emt 0:00:03]} 3. exd5 {[%emt 0:00:06]} cxd5 {[%emt 0:00:05]} 4. Nf3 {[%emt 0:00:06]} Nc6 {[%emt 0:03:34]} 5. c4 {[%emt 0:00:02]} Nf6 {[%emt 0:00:10][%cal Bg8f6,Bf6d5,Bd5c3][%mdl 32]} 6. Nc3 {[%emt 0:00:03]} g6 {[%emt 0:05:20]} 7. cxd5 {[%emt 0:00:12]} Nxd5 {[%emt 0:00:02]} 8. Qb3 {[%emt 0:02:37]} Nxc3 {[%emt 0:00:32]} 9. Bc4 {[%emt 0:00:19]} e6 {[%emt 0:13:45] is cutting edge theory.} 10. bxc3 {[%emt 0:00:03]} Na5 {[%emt 0:00:03] A35: Symmetrical English: 2 Nc3 Nc6 3 Nf3.} (10... Bd7 {looks sharper.} 11. Bg5 f6 12. Bxe6 fxg5 13. O-O Bxe6 14. Qxe6+ Qe7) 11. Bb5+ {[%emt 0:01:29]} Bd7 {[%emt 0:00:02]} 12. Qb1 {[%emt 0:06:10] [#]} Nc6 $146 {[%emt 0:29:35]} (12... a6 $11 13. Bxd7+ Qxd7) ({Predecessor:} 12... Bd6 13. Bh6 Rc8 14. O-O Rxc3 15. Bxd7+ Qxd7 16. Bd2 Rxf3 17. gxf3 Nc4 18. Bg5 O-O {0-1 (42) Hryzlova,S (1940)-Gevorgyan,M (2228) Chess.com INT 2020}) 13. O-O $14 {[%emt 0:07:50][%cal Od4d5]} Bg7 {[%emt 0:00:01] Prevents d5.} 14. Ba3 {[%emt 0:01:34][%cal Od4d5] [#] Threatens to win with d5!} Bf8 {[%emt 0:00:02] Prevents d5.} 15. Bxf8 {[%emt 0:01:15]} Kxf8 {[%emt 0:00:02]} 16. c4 {[%emt 0:09:40] Strongly threatening d5.} a6 {[%emt 0:13:12] Prevents d5.} 17. Bxc6 {[%emt 0:03:06]} (17. Ba4 $5) 17... Bxc6 {[%emt 0:00:02]} 18. d5 {[%emt 0:03:56]} exd5 {[%emt 0:00:01]} 19. Qb2 {[%emt 0:28:02] Prevents Qf6.} d4 {[%emt 0:00:01]} 20. Nxd4 {[%emt 0:00:09]} Qf6 {[%emt 0:00:01]} 21. Rad1 {[%emt 0:24:40][%cal Od4e6,Ba1d1,Bd1d6,Bd6a6][%mdl 32] [#] And now Ne6+! would win.} (21. Rfe1 $5 {[%cal Rd4e6]} Kg7 22. Re3 $14) 21... Re8 {[%emt 0:06:20] Against Ne6+. The position is equal.} (21... Kg8 {simplifies} 22. Rd2 Re8 23. Nxc6 Qxb2 24. Rxb2 bxc6 25. g3 Kg7) 22. Qa3+ {[%emt 0:01:51]} Kg7 {[%emt 0:02:11]} 23. Nxc6 {[%emt 0:00:15]} Qxc6 {[%emt 0:00:30]} 24. Rd6 {[%emt 0:00:19]} Qxc4 {[%emt 0:04:43]} 25. Qb2+ {[%emt 0:00:02]} Kg8 {[%emt 0:00:04]} 26. Qxb7 {[%emt 0:04:12]} Qxa2 {[%emt 0:00:24]} 27. Rxa6 {[%emt 0:00:02]} Qe2 {[%emt 0:06:18]} 28. Ra7 {[%emt 0:00:21][%csl Ga7][%cal Rb7f7]} Qe6 {[%emt 0:00:12] Weighted Error Value: White=0.08 (flawless) /Black=0.09 (flawless)} 1/2-1/2

[Event "US Masters 2022"]
[Site "Charlotte"]
[Date "2022.11.28"]
[Round "9.4"]
[White "Mandizha, Farai"]
[Black "Antipov, Mikhail Al."]
[Result "0-1"]
[ECO "A09"]
[WhiteElo "2359"]
[BlackElo "2608"]
[Annotator "TA"]
[PlyCount "80"]
[EventDate "2022.11.23"]
[EventType "swiss"]
[EventCountry "USA"]
[SourceTitle "playchess.com"]
[Source "ChessBase"]
[SourceQuality "1"]
[TimeControl "5400+30"]

{[%evp 9,80,-2,-7,-25,-15,-8,16,9,22,-43,-8,-34,10,9,0,-62,-21,-27,-20,-65,-55,-62,-60,-59,-55,-54,-61,-57,-66,-73,0,-43,25,0,0,0,0,-67,-66,-66,-74,-954,-922,-972,-894,-1444,-1415,-29983,-29984,-29984,-29985,-29985,-1366,-1356,-1356,-1342,-1252,-1143,-1160,-1349,-1349,-6203,-1340,-1281,-1281,-6187,-6101,-6323,-29946,-6370,-6341,-5410,-1665]} 1. Nf3 {[%emt 0:00:04]} d5 {[%emt 0:01:16]} 2. c4 {[%emt 0:01:07]} d4 {[%emt 0:00:12]} 3. e3 {[%emt 0:04:34]} Nc6 {[%emt 0:00:06] [#]} 4. Bd3 $146 {[%emt 0:06:35][%cal Bf1d3,Bd3h7,Bh7c2][%mdl 32]} ({Predecessor:} 4. b4 dxe3 5. fxe3 Nxb4 6. Nc3 Nf6 7. d4 c6 8. a3 Na6 9. e4 g6 10. e5 Nh5 11. Be2 Bg7 12. O-O {0-1 (36) Erigaisi,A (2567)-Aronian,L (2781) Chess.com INT 2021}) 4... dxe3 {[%emt 0:13:13]} 5. dxe3 {[%emt 0:00:02]} Nb4 {[%emt 0:00:19]} (5... Bg4 {simplifies} 6. Nc3 Nf6 7. Qe2 Bxf3 8. gxf3 Qd7) 6. Qa4+ {[%emt 0:05:37] A09: Réti Opening: 1 Nf3 d5 2 c4.} (6. Ke2 {simplifies} Nxd3 7. Qxd3 Qxd3+ 8. Kxd3 f6 9. Ke2) 6... c6 {[%emt 0:02:49][%cal Bc7c6,Bc6c5][%mdl 32]} 7. Bxh7 {[%emt 0:00:38]} e5 {[%emt 0:31:45]} (7... Rxh7 {simplifies} 8. Qxb4 g5 9. c5 Rh5) 8. Bc2 {[%emt 0:02:49] The position is equal.} e4 {[%emt 0:00:50]} 9. Nd4 {[%emt 0:03:26]} (9. Bxe4 $11 Nf6 10. a3) 9... Bd7 {[%emt 0:01:45]} 10. Qb3 {[%emt 0:03:27]} (10. Bxe4 $2 c5 11. Qd1 (11. Nb5 $2 a6 $19) 11... cxd4 12. exd4 Nf6 $19) 10... c5 {[%emt 0:00:11]} 11. Ne2 {[%emt 0:03:48][%cal Bd4e2,Be2g3,Bg3e4,Be4d6][%mdl 32]} Bc6 {[%emt 0:04:07]} 12. a3 {[%emt 0:01:23]} (12. Nbc3 $11) 12... Nxc2+ {[%emt 0:01:10]} (12... Nd3+ {keeps more tension.} 13. Bxd3 exd3 14. Nf4 Bd6) 13. Qxc2 {[%emt 0:00:14]} Qg5 {[%emt 0:01:08]} 14. Ng3 {[%emt 0:08:41]} Bd6 {[%emt 0:02:37]} 15. Nxe4 {[%emt 0:11:52]} Qxg2 {[%emt 0:00:27]} 16. Nxd6+ {[%emt 0:00:05]} Kf8 $1 {[%emt 0:00:05]} 17. Rf1 {[%emt 0:00:45] Hoping for b4.} Rd8 {[%emt 0:00:06] Against b4} 18. Qf5 {[%emt 0:11:14][%csl Gd6,LRc5,LRf7][%cal Rf5f7]} Rxd6 {[%emt 0:00:03]} 19. Qxc5 {[%emt 0:00:05]} Rhh6 {[%emt 0:03:00] Black has more active pieces.} (19... Qg6 $1 $17 {[%cal Rg6d3] Threatens to win with ...Qd3.} 20. Nc3 (20. Qxa7 $2 Qd3 $19) 20... b6) 20. Bd2 {[%emt 0:00:56]} (20. Nc3 $5 {[%cal Re3e4]}) 20... Qf3 {[%emt 0:02:01]} (20... Qxh2 $2 21. Bb4 $16 (21. Qxa7 Rd8 $16)) (20... b6 $15 21. Qe5 Qg4) 21. Nc3 $11 {[%emt 0:01:13]} Ne7 {[%emt 0:02:18][%cal Bg8e7,Be7f5,Bf5h4][%mdl 32] Strongly threatening ...Nf5.} 22. Nb5 {[%emt 0:03:31]} Bxb5 {[%emt 0:09:09]} 23. Qxb5 {[%emt 0:01:46]} (23. cxb5 $11 Rd5 24. Qc2 (24. Qxa7 $2 Rhd6 $19)) 23... Nf5 {[%emt 0:05:07] aiming for ...Nh4.} 24. c5 $1 {[%emt 0:13:02]} (24. Bb4 {is a self mate.} Nxe3 $1 {[%mdl 512]}) 24... Nh4 $40 {[%emt 0:01:55][%cal Rh4g2][%mdl 192] Black wants a kill.} (24... Rd5 {simplifies} 25. Qe2 Nh4 26. Qxf3 Nxf3+ 27. Ke2 Nxd2 28. Rad1 Nxf1 29. Rxd5 Nxh2 30. Rd8+ Ke7) 25. Rg1 {[%emt 0:00:19][%mdl 8192] Now White is beyond hope.} (25. Qe2 $17 Rd5 26. Qxf3 (26. Rg1 $2 Rg6 $19) 26... Nxf3+ 27. Ke2 Nxd2 28. Rfd1) 25... Rdg6 $19 {[%emt 0:04:59]} 26. Rxg6 {[%emt 0:02:36]} Rxg6 {[%emt 0:00:05]} 27. Bc1 {[%emt 0:01:18]} Qd5 {[%emt 0:01:26]} ({Worse is} 27... Rg1+ 28. Kd2 $17) 28. Ke2 {[%emt 0:02:30]} Rd6 {[%emt 0:00:44]} 29. cxd6 {[%emt 0:09:35]} Qxb5+ {[%emt 0:00:03]} 30. Kd2 {[%emt 0:00:09]} Nf3+ {[%emt 0:00:25]} (30... Qc4 $142 31. e4 Nf3+ 32. Ke3 Nd4 33. Bd2 Nc2+ 34. Kf4 Nxa1 35. Be3 Nc2 36. Bxa7 g5+ 37. Kxg5 Qxe4 38. d7 Ke7 39. h4 Kxd7 40. h5 Qe5+ 41. Kg4 Qxb2 42. f3 Ne1 43. a4 Qg2+ 44. Kf5 Qxf3+ 45. Kg5 Ke6 46. Kh6 Qg4 47. Bf2 {[#]} f6 $1 48. Be3 Kf7 49. Bg5 Qxg5+ 50. Kh7 Qxh5#) 31. Kc3 {[%emt 0:00:08]} Ne5 {[%emt 0:00:02] ( -> ...Qc4+)} 32. b3 {[%emt 0:00:15] Prevents Qc4+.} Qd3+ {[%emt 0:00:09]} 33. Kb2 {[%emt 0:00:10]} Qxd6 {[%emt 0:00:04]} 34. Ka2 {[%emt 0:00:23]} Nd3 {[%emt 0:00:13][%csl LRf2,LRh2]} 35. Bd2 {[%emt 0:00:15]} Qc6 {[%emt 0:00:08][%cal Rc6c2]} 36. Kb1 {[%emt 0:00:11] Against Qc2+} Qh1+ {[%emt 0:00:13]} 37. Ka2 {[%emt 0:00:05]} Qxh2 {[%emt 0:00:05]} 38. Rd1 {[%emt 0:00:55]} Qxf2 {[%emt 0:00:06]} 39. Kb1 {[%emt 0:00:05]} Qe2 {[%emt 0:00:10]} 40. Kc2 {[%emt 0:00:07]} g5 {[%emt 0:00:22] Weighted Error Value: White=0.60/Black=0.34} 0-1

[Event "US Masters 2022"]
[Site "Charlotte"]
[Date "2022.11.28"]
[Round "9.5"]
[White "Cordova, Emilio"]
[Black "Balakrishnan, Praveen"]
[Result "1-0"]
[ECO "A17"]
[WhiteElo "2561"]
[BlackElo "2510"]
[Annotator "TA"]
[PlyCount "147"]
[EventDate "2022.11.23"]
[EventType "swiss"]
[EventCountry "USA"]
[SourceTitle "playchess.com"]
[Source "ChessBase"]
[SourceQuality "1"]
[TimeControl "5400+30"]

{[%evp 9,147,10,5,5,9,8,16,-8,-8,-8,-10,-13,-7,-8,0,0,14,8,43,7,15,2,31,29,57,29,59,23,98,8,47,-6,87,84,87,64,71,70,89,85,83,78,89,89,88,66,53,50,61,47,53,60,78,79,85,54,62,34,31,19,18,16,73,56,83,91,92,101,89,88,116,116,120,118,154,105,164,175,162,185,268,266,279,200,282,277,263,263,263,260,295,289,395,372,320,272,428,427,618,393,347,272,269,174,388,388,381,374,550,541,460,401,637,637,585,589,577,643,663,629,594,594,558,539,1206,1266,29966,29967,7691,4631,29983,29984,29984,29984,29985,29986,29986,29987,29986,29985]} 1. Nf3 {[%emt 0:04:01]} d5 {[%emt 0:04:35]} 2. e3 {[%emt 0:01:52]} Nf6 {[%emt 0:00:10]} 3. c4 {[%emt 0:00:15]} e6 {[%emt 0:00:07]} 4. Nc3 {[%emt 0:00:19]} b6 {[%emt 0:00:37]} 5. b3 {[%emt 0:00:25]} Bb7 {[%emt 0:00:18]} 6. Bb2 {[%emt 0:00:07] A17: English Opening: 1...Nf6 with ...Bb4.} Nbd7 {[%emt 0:00:28]} 7. d4 {[%emt 0:01:22]} Bd6 {[%emt 0:06:53]} 8. Qc2 $5 {[%emt 0:01:11][%mdl 4] The position is equal. An interesting side line.} O-O {[%emt 0:01:42]} 9. cxd5 {[%emt 0:07:10]} exd5 {[%emt 0:00:41]} 10. Bd3 {[%emt 0:00:07]} a6 {[%emt 0:02:30]} 11. O-O {[%emt 0:00:16]} Re8 {[%emt 0:01:08]} 12. Rac1 {[%emt 0:01:24]} c5 {[%emt 0:18:29]} 13. Rfd1 {[%emt 0:07:05] [#]} Qc7 $146 {[%emt 0:05:45]} ({Predecessor:} 13... Nf8 14. Ne2 Rc8 15. Qb1 Ne6 16. Ng3 Bf8 17. Qa1 Nd7 18. Bf1 Rc7 19. a4 Qa8 {1-0 (46) Cordova,E (2549)-Yim,S (2251) Las Vegas 2022}) 14. Ne2 {[%emt 0:07:32] Prevents c4.} Rac8 {[%emt 0:05:11]} 15. Ng3 {[%emt 0:00:52]} Qb8 {[%emt 0:04:07]} 16. Qe2 {[%emt 0:03:04]} Qa8 {[%emt 0:06:02]} 17. Bf5 {[%emt 0:12:56][%cal Og3h5]} (17. Nf5 {seems wilder.} Bf8 18. Ne5 g6 19. Nxd7 Nxd7 20. Qg4) 17... Rcd8 {[%emt 0:07:10]} 18. Ba1 {[%emt 0:18:04]} (18. dxc5 {with more complications.} bxc5 19. Bxd7 Nxd7 20. Nf5) 18... Bf8 {[%emt 0:10:35]} (18... a5 $11) 19. Qb2 {[%emt 0:03:58] White has more active pieces.} (19. Ne5 $16) 19... Qb8 {[%emt 0:11:04]} (19... c4 {looks sharper.} 20. bxc4 dxc4 21. Rxc4 b5) 20. Bh3 {[%emt 0:01:07]} (20. a4 $14) 20... Ne4 {[%emt 0:02:16]} (20... c4 $11 {remains equal.}) 21. dxc5 $16 {[%emt 0:03:11]} Ndxc5 {[%emt 0:03:02]} 22. Nf5 {[%emt 0:08:52][%cal Rf5g7]} f6 {[%emt 0:00:24]} 23. N5d4 {[%emt 0:00:04]} Rd6 {[%emt 0:02:51]} 24. Qc2 {[%emt 0:00:55]} g6 {[%emt 0:02:04]} 25. b4 {[%emt 0:02:21]} Nd7 {[%emt 0:00:09][%cal Bc5d7,Bd7b8,Bb8c6][%mdl 32]} 26. Qc7 {[%emt 0:00:51]} f5 {[%emt 0:01:54]} 27. Qxb8 {[%emt 0:00:10]} (27. Bxf5 {is interesting.} gxf5 28. Nxf5 Rd8 29. Qxb8 Nxb8 30. Nxd6 Bxd6 31. a3) 27... Nxb8 {[%emt 0:00:31]} 28. g4 {[%emt 0:00:20]} fxg4 {[%emt 0:00:57]} 29. Bxg4 {[%emt 0:00:04]} Nc6 {[%emt 0:01:11]} 30. a3 {[%emt 0:03:06]} h5 {[%emt 0:00:25]} 31. Bh3 {[%emt 0:00:07]} Bg7 {[%emt 0:00:34]} 32. Nxc6 {[%emt 0:00:21]} (32. Rc2 {is more complex.} Rf8 33. Rdc1 Nd8 34. Rc7) 32... Bxa1 {[%emt 0:00:58]} 33. Rxa1 {[%emt 0:00:04] [#] Hoping for Ncd4.} (33. Ncd4 $5 {[%cal Rc1a1]} Bxd4 34. Nxd4 $14) 33... Bxc6 {[%emt 0:00:21]} 34. Nd4 {[%emt 0:00:21] Nxc6 is the strong threat.} Bd7 {[%emt 0:00:58]} 35. Bg2 {[%emt 0:00:13]} Nc3 {[%emt 0:01:07]} (35... Rf6 $11 {keeps the balance.}) 36. Rd3 $36 {[%emt 0:00:49][%mdl 2048] White is pushing.} Rc8 {[%emt 0:00:26]} 37. Rc1 {[%emt 0:00:32] Black is now going downhill.} Ne4 {[%emt 0:00:24]} 38. Rxc8+ {[%emt 0:01:56]} Bxc8 {[%emt 0:00:00]} 39. f3 {[%emt 0:00:46]} Nf6 {[%emt 0:00:34]} 40. Rc3 {[%emt 0:00:03]} Bf5 {[%emt 0:00:52]} 41. h4 {[%emt 0:00:55]} Kf7 {[%emt 0:00:40]} 42. Kf2 {[%emt 0:00:07]} (42. Rc7+ $142 Kf8 43. Ra7) 42... a5 {[%emt 0:00:33]} (42... Ng8 $16) 43. Bf1 {[%emt 0:00:14]} axb4 {[%emt 0:00:11]} 44. axb4 {[%emt 0:00:03]} Rd8 {[%emt 0:01:00]} (44... Ng8 {was called for.} 45. Nb5 Rf6) 45. Rc6 $18 {[%emt 0:00:10]} Rb8 {[%emt 0:00:23]} 46. Bb5 {[%emt 0:02:18]} Rb7 {[%emt 0:00:28]} (46... Ne8 {might work better.} 47. Nxf5 gxf5) 47. Ba6 {[%emt 0:00:32]} Rb8 {[%emt 0:00:08]} 48. Nxf5 {[%emt 0:01:08]} gxf5 {[%emt 0:00:01][%mdl 4096] Endgame KRB-KRN} 49. Bc8 {[%emt 0:00:21]} f4 {[%emt 0:00:26]} 50. exf4 {[%emt 0:00:04]} Ra8 {[%emt 0:00:17]} 51. Be6+ {[%emt 0:01:37]} Ke7 {[%emt 0:00:01]} 52. Rxb6 {[%emt 0:00:10] And now f5 would win.} d4 {[%emt 0:02:04]} (52... Nd7 $142 53. Bxd7 Kxd7) 53. f5 {[%emt 0:00:04]} Ra1 {[%emt 0:00:37]} (53... Ne8 $142 54. Rb7+ Kd6 55. Rd7+ Ke5 56. Rd5+ Kf6 57. Rxd4 Ng7) 54. Rc6 {[%emt 0:00:33] aiming for Bc4.} Rb1 {[%emt 0:00:32]} 55. Rc4 {[%emt 0:02:50]} Rb2+ {[%emt 0:00:07]} 56. Ke1 {[%emt 0:01:00]} d3 {[%emt 0:00:28]} (56... Ne8 {keeps fighting.} 57. Rxd4 Nd6) 57. Rd4 {[%emt 0:00:06]} d2+ {[%emt 0:00:59]} 58. Kd1 {[%emt 0:00:04]} (58. Rxd2 Rxb4 59. Kf2 Rxh4 $16) 58... Ke8 {[%emt 0:00:31]} (58... Kf8 $142 59. Bc8 (59. Rxd2 Rxb4 60. Ra2 Kg7 $16) 59... Ke7) 59. Bc4 {[%emt 0:00:58]} ({Not} 59. Rxd2 Rxb4 60. Rh2 Ke7 $16) 59... Ke7 {[%emt 0:00:22]} 60. b5 {[%emt 0:00:08]} ({Weaker is} 60. Rxd2 Rxb4 61. Rd4 Rb2 $16) 60... Ne8 {[%emt 0:00:27]} (60... Nd7 $142 61. Rxd2 Rb4) 61. Rxd2 {[%emt 0:01:44]} Rb4 {[%emt 0:00:17]} 62. Re2+ {[%emt 0:00:07]} Kf8 {[%emt 0:00:54]} 63. Bd3 {[%emt 0:00:04]} Nd6 {[%emt 0:01:04]} 64. Re5 {[%emt 0:01:25]} Rxh4 {[%emt 0:00:00]} 65. Be4 {[%emt 0:00:18]} Rh2 {[%emt 0:00:15]} 66. Kc1 {[%emt 0:00:25]} Nc4 {[%emt 0:00:42]} 67. Rc5 {[%emt 0:00:23]} Nb6 {[%emt 0:00:26]} 68. Rc6 {[%emt 0:00:13]} Nd7 {[%emt 0:00:26]} 69. b6 {[%emt 0:00:28][%cal Bb5b6,Bb6b7][%mdl 32]} Ke7 {[%emt 0:00:26]} 70. f6+ {[%emt 0:00:18] White mates.} Nxf6 {[%emt 0:00:26] [#]} 71. Rxf6 $1 {[%emt 0:00:19][%mdl 512]} Kxf6 {[%emt 0:00:06]} (71... Rh1+ 72. Kd2) 72. b7 {[%emt 0:00:03]} Rh1+ {[%emt 0:00:05]} 73. Kc2 {[%emt 0:00:06]} Rh2+ {[%emt 0:00:03]} 74. Kc3 {[%emt 0:00:05] Weighted Error Value: White=0.21 (precise) /Black=0.42} 1-0

[Event "US Masters 2022"]
[Site "Charlotte"]
[Date "2022.11.28"]
[Round "9.6"]
[White "Cervantes Landeiro, Thalia"]
[Black "Hambleton, Aman"]
[Result "1/2-1/2"]
[ECO "E15"]
[WhiteElo "2309"]
[BlackElo "2437"]
[Annotator "TA"]
[PlyCount "99"]
[EventDate "2022.11.23"]
[EventType "swiss"]
[EventCountry "USA"]
[SourceTitle "playchess.com"]
[Source "ChessBase"]
[SourceQuality "1"]
[TimeControl "5400+30"]

{[%evp 18,99,14,18,38,42,39,8,7,6,54,56,58,35,43,31,53,41,46,50,41,53,58,57,58,61,57,57,66,68,55,55,40,56,143,24,35,29,29,18,97,72,72,66,44,43,79,37,45,45,45,19,17,8,8,8,9,9,10,0,0,-96,-98,-123,-157,-144,-139,-152,-55,-41,0,0,0,0,0,0,0,0,0,0,0,0,0,0]} 1. d4 {[%emt 0:00:03]} Nf6 {[%emt 0:00:28]} 2. c4 {[%emt 0:00:07]} e6 {[%emt 0:00:29]} 3. Nf3 {[%emt 0:00:10]} b6 {[%emt 0:00:23]} 4. g3 {[%emt 0:00:17]} Ba6 {[%emt 0:00:12]} 5. Qa4 {[%emt 0:00:28]} Bb7 {[%emt 0:00:23]} 6. Bg2 {[%emt 0:00:15]} c5 {[%emt 0:00:20]} 7. dxc5 {[%emt 0:00:24]} Bxc5 {[%emt 0:00:30]} 8. O-O {[%emt 0:00:39]} O-O {[%emt 0:00:14]} 9. Nc3 {[%emt 0:01:36]} Be7 {[%emt 0:02:15]} 10. Rd1 {[%emt 0:03:14]} a6 {[%emt 0:35:51] E15: Queen's Indian: 4 g3 sidelines, 4 g3 Ba6 and 4 g3 Bb7 early deviations.} 11. Bf4 {[%emt 0:04:27]} d6 {[%emt 0:01:20]} 12. Rd2 {[%emt 0:05:57]} Qc7 {[%emt 0:15:36]} 13. Rad1 {[%emt 0:06:31][%cal Rd2d6]} e5 {[%emt 0:07:23]} (13... Rd8 $11) 14. Bg5 $14 {[%emt 0:01:57]} Nbd7 $1 {[%emt 0:00:15][%cal Ob6b5] [#]} 15. Bxf6 $146 {[%emt 0:10:45]} (15. Qc2 {keeps more tension.} Rfe8 16. b3 b5 17. Bxf6 Nxf6 18. Ng5) ({Predecessor:} 15. Nh4 g6 16. Bxb7 Qxb7 17. Ng2 Rfc8 18. Ne3 Bf8 19. Bxf6 Nxf6 20. Ned5 Nxd5 21. Nxd5 {½-½ (61) Shulman,Y (2595)-Neimer,V (2384) Saint Louis 2012}) 15... Nxf6 {[%emt 0:01:00]} 16. Nh4 {[%emt 0:04:01] Prevents b5. Hoping for Bxb7.} g6 {[%emt 0:05:02]} 17. Bxb7 {[%emt 0:02:41]} Qxb7 {[%emt 0:00:30]} 18. Ng2 {[%emt 0:00:48]} b5 {[%emt 0:21:28]} 19. Qb3 {[%emt 0:05:59]} Rab8 {[%emt 0:02:28]} 20. cxb5 {[%emt 0:05:10]} axb5 {[%emt 0:00:44]} 21. Ne3 {[%emt 0:02:02]} Rfc8 {[%emt 0:00:18]} 22. Ned5 {[%emt 0:01:28] aiming for Nxf6+.} Nxd5 {[%emt 0:00:29]} 23. Rxd5 {[%emt 0:00:47]} Rc5 {[%emt 0:00:30]} 24. Ne4 {[%emt 0:10:15]} Rxd5 {[%emt 0:00:42]} 25. Rxd5 {[%emt 0:00:42][%cal Oe4c3] Nc3! is the strong threat.} ({Of course not} 25. Qxd5 Qxd5 26. Rxd5 b4 $11) 25... Qc6 {[%emt 0:01:21] [#]} ({Black should play} 25... Qa8 $14) 26. a4 {[%emt 0:05:07] White is more active.} (26. Nc3 $1 $16) 26... Qc4 {[%emt 0:01:28]} (26... Qc1+ {is more complex.} 27. Kg2 Qc4 28. Qxc4 bxc4 29. Rb5 Rxb5 30. axb5 d5) 27. Qxc4 {[%emt 0:03:57]} bxc4 {[%emt 0:00:03][%mdl 4096] Endgame KRB-KRN} 28. Rb5 {[%emt 0:03:46]} Ra8 {[%emt 0:01:59]} (28... Rxb5 $11 {remains equal.} 29. axb5 d5) 29. Nc3 {[%emt 0:00:50]} f5 {[%emt 0:00:40]} 30. Nd5 {[%emt 0:02:45]} Bd8 {[%emt 0:00:35][%cal Og8f7]} 31. Rb4 {[%emt 0:01:41]} Rc8 {[%emt 0:00:32]} 32. Ne3 {[%emt 0:01:19]} (32. Rb7 $5 {[%cal Rf2f3]}) 32... c3 {[%emt 0:00:27]} 33. bxc3 {[%emt 0:00:30][%cal Bb2c3,Bc3c4][%mdl 32]} Kf7 $1 {[%emt 0:00:28]} 34. c4 {[%emt 0:00:52]} Ke6 {[%emt 0:00:08]} 35. Kg2 {[%emt 0:02:26]} Ba5 {[%emt 0:00:47]} 36. Rb7 {[%emt 0:02:37]} f4 {[%emt 0:00:31]} 37. gxf4 {[%emt 0:01:32]} exf4 {[%emt 0:00:03]} 38. Nd5 {[%emt 0:01:28]} (38. Nd1 {simplifies} Rxc4 39. Rxh7 Rxa4 40. Nb2) 38... Rxc4 {[%emt 0:00:09]} 39. e4 {[%emt 0:02:53]} (39. Rb5 $11 Rxa4 40. Nxf4+ Rxf4 41. Rxa5) 39... Rxe4 $17 {[%emt 0:01:06]} (39... Rxa4 $2 40. Re7#) 40. Kf3 {[%emt 0:00:39]} Kxd5 {[%emt 0:00:49] KRB-KR} ({Much worse is} 40... Rxa4 $6 41. Nxf4+ Ke5 42. Re7+ Kf6 43. Rxh7 $11) 41. Rb5+ {[%emt 0:00:04]} Kd4 {[%emt 0:00:07]} 42. Rxa5 {[%emt 0:00:06] [#] KR-KR} d5 {[%emt 0:00:08]} ({Black should try} 42... Re7 $1 $17 {Strongly threatening ...d5.} 43. Ra8 d5) 43. Ra7 $15 {[%emt 0:00:56]} h6 {[%emt 0:01:16]} 44. Ra6 {[%emt 0:01:29] Prevents Re6. The position is equal.} g5 {[%emt 0:00:27] White must now prevent ...h5.} 45. Rxh6 {[%emt 0:00:48]} Ke5 {[%emt 0:00:08]} 46. h4 {[%emt 0:02:11]} gxh4 {[%emt 0:00:55]} 47. Rh5+ {[%emt 0:00:11]} Ke6 {[%emt 0:00:13]} 48. Rxh4 {[%emt 0:01:24]} Rxa4 {[%emt 0:00:12]} 49. Rxf4 {[%emt 0:00:13]} Rxf4+ {[%emt 0:00:09]} 50. Kxf4 {[%emt 0:00:06] Weighted Error Value: White=0.13 (very precise) /Black=0.14 (very precise)} 1/2-1/2